Cogmind - Beta 17 @@@ ROGUE MODE // 2026.07.27 @ 20:28:57 Player: kite Result: Self-destructed Performance ------------- Evolutions (6) 3000 Regions Visited (22) 4400 Robots Destroyed (229) 1145 Value Destroyed (9618) 9618 Prototype IDs (220) 4400 Alien Tech Used (0) 0 Bonus (8113) 8113 TOTAL SCORE: 30676 Bonus ------- High Alert Combat Kills 954 Follower Combat Kills 2704 Network Hubs Disabled 400 Met Data Miner 300 Used Data Conduit 3000 Met Imprinter 300 Was Imprinted 300 Built Enhanced Grunts 300 A7 Reached Mainframe 300 Met R17 at Cetus 500 Friendly Fire -945 Cogmind --------- Core Integrity 551/1150 Matter 300/300 Energy 92/100 System Corruption 30% Temperature Cool (0) Movement Treading (560) Ox5 Location -4/Armory Parts ------- > --- POWER (1) -------- (None) > --- PROPULSION (7) --- Medium Treads > --- UTILITY (6) ------ Cargo Storage Unit Improved Signal Interpreter Experimental Thermal Shield > --- WEAPON (5) ------- Power Maul Shock Maul > --- INVENTORY (30) --- Light Neutrino Core Micro Fission Core Light Antimatter Reactor Improved Sensor Array Experimental Sensor Array Transmission Jammer Advanced Thermal Shield EM Shield Advanced Shield Generator Improved Hacking Suite Deep Network Scanner Ghost Barrier Quantum Router Authchip [Weapon] Advanced Drone Bay (2/2) Heavy Shock Bomb Launcher Scatter Rocket Array Remote Datajack Power Maul Peak State ------------ > --- POWER ------------ Particle Reactor > --- PROPULSION ------- Medium Treads Medium Treads Armored Medium Treads Centrium Heavy Treads Centrium Heavy Treads > --- UTILITY ---------- Cargo Storage Unit Experimental Sensor Array Improved Signal Interpreter Centrium Medium Armor Plating Advanced Shield Generator > --- WEAPON ----------- Power Maul Power Maul Power Maul Ripper Ripper > --- INVENTORY -------- Fission Core Improved Treads Improved Treads Medium Treads Armored Medium Treads Heavy Siege Treads Heavy Siege Treads Heavy Siege Treads Improved Sensor Array Microactuators Actuator Array Transmission Jammer Centrium Medium Armor Plating Experimental Thermal Shield EM Shield Advanced Shield Generator Improved Hacking Suite Deep Network Scanner Ghost Barrier Quantum Router Advanced Drone Bay Heavy Shock Bomb Launcher Scatter Rocket Array Remote Datajack Power Maul Ripper [Rating: 124] Favorites ----------- Power Antimatter Reactor Engine Ion Engine Power Core Micro Nuclear Core Reactor Antimatter Reactor Propulsion Light Treads Treads Light Treads Leg Enhanced Flexi-carbon Leg Wheel Compact Wheel Utility Cargo Storage Unit Device Improved Sensor Array Storage Cargo Storage Unit Processor Improved Signal Interpreter Hackware Improved Hacking Suite Protection Hardened Light Armor Plating Weapon Power Maul Energy Gun Particle Gun Ballistic Gun Hypervelocity Coil Gun Ballistic Cannon Improved Light Cannon Launcher Guided Missile Launcher Special Weapon Remote Datajack Impact Weapon Power Maul Slashing Weapon Ripper Piercing Weapon Makeshift Spear Build | -11 -10 -10 -10 -9 -8 -7 -7 -7 -7 -6 -6 -6 -6 -6 -5 -5 -5 -5 -5 -5 -4 -4 ------- Run | Yrd Mat Min Exi Min Mat Fac Low Low Zio Pro Fac Low Low Dat Pro Fac Ext Cet Arc Hub Fac Arm Slots Evolved 12 | . . . . . 4 2 . . . . 2 . . . . 2 . . . . 2 . Power . | . . . . . . . . . . . . . . . . . . . . . . . Propulsion 5 | . . . . . 2 2 . . . . . . . . . 1 . . . . . . Utility 4 | . . . . . 1 . . . . . 2 . . . . 1 . . . . . . Weapon 3 | . . . . . 1 . . . . . . . . . . . . . . . 2 . Parts Attached 177 | 6 5 . . . 27 14 2 5 . 17 15 3 2 13 4 7 14 6 6 7 8 16 Power 13 | 1 . . . . 2 1 . . . 3 . . . 1 . . 2 . 1 . . 2 Engine 4 | 1 . . . . 1 1 . . . . . . . . . . 1 . . . . . Core 5 | . . . . . 1 . . . . 2 . . . . . . 1 . . . . 1 Reactor 4 | . . . . . . . . . . 1 . . . 1 . . . . 1 . . 1 Propulsion 70 | 2 . . . . 11 5 . 1 . 9 7 3 . 5 4 2 4 2 2 2 2 9 Treads 37 | 2 . . . . 5 1 . . . 7 1 1 . . . . 3 2 2 2 2 9 Leg 17 | . . . . . 6 . . . . 1 . . . 4 4 1 1 . . . . . Wheel 16 | . . . . . . 4 . 1 . 1 6 2 . 1 . 1 . . . . . . Hover . | . . . . . . . . . . . . . . . . . . . . . . . Flight . | . . . . . . . . . . . . . . . . . . . . . . . Utility 58 | 1 3 . . . 5 6 1 2 . 5 3 . 1 4 . 5 4 2 3 5 5 3 Device 23 | . 1 . . . 1 3 . 1 . . 1 . 1 1 . 2 . . 3 2 5 2 Storage 6 | 1 1 . . . 1 . . . . 1 . . . . . . 1 . . 1 . . Processor 9 | . . . . . 2 1 . . . 2 1 . . 2 . 1 . . . . . . Hackware 2 | . . . . . . . . . . . . . . . . . 2 . . . . . Protection 18 | . 1 . . . 1 2 1 1 . 2 1 . . 1 . 2 1 2 . 2 . 1 Artifact . | . . . . . . . . . . . . . . . . . . . . . . . Weapon 36 | 2 2 . . . 9 2 1 2 . . 5 . 1 3 . . 4 2 . . 1 2 Energy Gun 4 | 2 . . . . 1 . . . . . . . . . . . . 1 . . . . Energy Cannon . | . . . . . . . . . . . . . . . . . . . . . . . Ballistic Gun 5 | . . . . . 2 . . . . . . . . . . . 3 . . . . . Ballistic Cannon 4 | . 2 . . . 2 . . . . . . . . . . . . . . . . . Launcher 4 | . . . . . . 1 . . . . 2 . . . . . 1 . . . . . Special Weapon 2 | . . . . . . . . . . . . . 1 . . . . . . . 1 . Impact Weapon 9 | . . . . . 4 1 . . . . 3 . . . . . . . . . . 1 Slashing Weapon 7 | . . . . . . . 1 1 . . . . . 3 . . . 1 . . . 1 Piercing Weapon 1 | . . . . . . . . 1 . . . . . . . . . . . . . . Special Melee Weapon . | . . . . . . . . . . . . . . . . . . . . . . . Unidentified Prototypes 9 | . . . . . 3 2 . 1 . . 2 . . . . . . 1 . . . . Corrupted Parts 13 | . . . . . . . . . . 3 . . . . 4 . . 3 . 2 . 1 System Corruption 85 | . . . . . . . . . . 9 . . . . 37 . . 30 . 5 . 4 Parts Lost 71 | . . . . . 6 1 . . . 14 6 . . 6 2 1 6 . . 1 . 28 Power 8 | . . . . . . . . . . 3 . . . 1 . . 2 . . . . 2 Propulsion 41 | . . . . . 1 1 . . . 8 6 . . 4 1 1 4 . . 1 . 14 Utility 10 | . . . . . 1 . . . . 2 . . . 1 . . . . . . . 6 Weapon 12 | . . . . . 4 . . . . 1 . . . . 1 . . . . . . 6 Highest Loss Streak 13 | . . . . . 1 1 . . . 5 3 . . 5 1 1 3 . . 1 . 13 To Critical Strikes 1 | . . . . . . . . . . . . . . . . . . . . . . 1 Average Backups 23 | 1 7 9 9 14 21 21 24 23 23 22 26 27 27 23 27 26 27 27 27 27 27 22 Power . | . . . . . . 1 1 1 1 . . 1 1 1 1 1 . 1 1 1 1 1 Propulsion 2 | . 2 2 2 2 5 4 4 4 4 1 2 4 3 1 2 2 2 1 . 1 5 3 Utility 13 | . 2 4 4 8 11 12 11 12 12 15 18 14 13 11 15 15 15 16 16 15 14 13 Weapon 5 | . 2 3 3 3 4 3 5 5 5 4 4 6 9 8 8 7 8 8 8 8 5 3 Tool/Special . | . . . . . . . . . . . . . . . . . . . . . . . Unused Backups 59 | . . . . . 9 3 1 2 . 9 4 3 . 4 . 1 4 5 3 . 2 9 Power 8 | . . . . . . 1 . . . 1 . . . 1 . . . 1 2 . . 2 Propulsion 8 | . . . . . 2 . . . . . . . . 1 . 1 1 3 . . . . Utility 38 | . . . . . 6 2 . 2 . 6 4 3 . 1 . . 3 1 1 . 2 7 Weapon 4 | . . . . . 1 . 1 . . 1 . . . 1 . . . . . . . . Tool/Special 1 | . . . . . . . . . . 1 . . . . . . . . . . . . Average Slot Usage (%) 88 | . 99 100 100 100 93 89 86 87 92 84 82 86 85 88 86 93 92 84 78 81 79 78 Engine 2 | . 14 14 14 14 6 . . . . . . . . . . . 2 . . . . . Core 2 | . . . . . 2 6 7 7 7 3 . . . . . . 1 5 4 5 1 1 Reactor 2 | . . . . . . . . . . 3 6 6 6 5 6 5 . . . . 3 3 Treads 15 | . 28 28 28 28 2 24 17 22 15 27 6 8 . . . . 6 26 29 28 26 22 Leg 9 | . . . . . 31 . . . . 2 . . . 13 30 40 31 4 . . . . Wheel 9 | . . . . . . 11 20 15 23 8 25 30 40 24 7 . . . . . . . Device 4 | . . . . . . 7 6 1 7 2 12 11 6 6 6 10 1 . 4 7 7 9 Storage 7 | . 14 14 14 14 13 7 7 7 7 7 6 6 6 5 6 5 5 11 5 5 5 5 Processor 7 | . . . . . 8 2 7 7 7 7 6 6 6 8 13 10 11 11 11 11 6 5 Protection 3 | . 12 14 14 14 3 4 . 5 . . . . 5 4 . . 4 5 2 2 3 4 Ballistic Cannon 4 | . 26 28 28 28 18 . . . . . . . . . . . . . . . . . Impact Weapon 5 | . . . . . . 23 10 5 7 3 12 9 5 . 4 4 . . 1 5 13 15 Slashing Weapon 5 | . . . . . . . 4 7 7 6 2 . . 15 6 11 8 14 15 8 4 8 Piercing Weapon 1 | . . . . . . . . 3 7 7 . . . . . . . . . . . . Peak Build Rating 124 | 6 11 11 11 14 35 48 43 47 43 49 59 60 52 77 80 92 92 101 100 108 124 124 Average Rating 57 | 4 10 11 11 11 27 40 42 43 43 41 54 56 51 62 78 89 85 94 93 99 117 109 On Entrance 52 | . 6 11 11 11 14 27 40 43 43 43 47 55 48 52 77 79 85 79 96 100 108 124 Avg Prop Armor Cover (%) 15 | . . . . . . 15 17 19 19 23 9 15 . 5 3 1 6 15 . 3 . 16 Naked Turns . | . . . . . . . . . . . . . . . . . . . . . . . Heaviest Build 193 | 13 58 58 58 58 137 106 102 101 95 163 173 173 177 178 170 177 178 178 171 178 189 193 Greatest Support 243 | 40 40 40 40 40 83 123 48 54 54 131 76 78 78 112 142 170 157 226 239 239 243 243 Greatest Overweight (x) 10 | . 2 1 1 1 2 3 2 2 1 10 5 3 2 3 1 1 1 1 . . . 1 Average Overweight (x) 1 | . . 1 1 1 1 . 1 1 1 3 2 2 2 1 1 . 1 . . . . . Largest Inventory Capacity 30 | 8 20 20 20 20 25 25 25 25 25 30 30 30 30 30 30 30 30 30 30 30 30 30 Average Capacity 26 | 6 15 20 20 20 22 25 25 25 25 26 30 30 30 28 30 30 30 30 30 30 30 30 Most Carried 30 | 3 9 9 12 20 25 25 25 25 25 30 30 30 30 30 30 30 30 30 30 30 30 30 Average Carried 24 | 1 7 9 9 14 22 23 24 24 25 24 29 29 29 26 29 28 29 29 29 29 29 25 Final Capacity 30 | 8 20 20 20 20 25 25 25 25 25 30 30 30 30 30 30 30 30 30 30 30 30 30 Final Carried 30 | 3 9 9 12 20 18 25 25 25 25 30 30 30 30 30 30 30 30 30 30 29 30 20 Class Distribution -------------------- 33% | Mutant 13% | Hauler-Gladiator 13% | Scavenger-Gladiator 12% | Hauler-Mutant 8% | Scavenger-Mutant 6% | Hauler-Assassin 5% | Gunner Dominant Class ---------------- Mutant | -10/Materials Mutant | -10/Mines Mutant | -10/Exiles Mutant | -9/Mines Gunner | -8/Materials Mutant | -7/Factory Mutant | -7/Lower Caves Mutant | -7/Lower Caves Mutant | -7/Zion Mutant | -6/Proximity Caves Hauler-Assassin | -6/Factory Hauler-Assassin | -6/Lower Caves Scavenger-Mutant | -6/Lower Caves Scavenger-Gladiator | -6/Data Miner Hauler-Gladiator | -5/Proximity Caves Scavenger-Gladiator | -5/Factory Scavenger-Tank | -5/Extension Hauler-Gladiator | -5/Cetus Scavenger-Gladiator | -5/Archives Hauler-Gladiator | -5/Hub_04(d) Hauler-Mutant | -4/Factory Hauler-Mutant | -4/Armory Resources | -11 -10 -10 -10 -9 -8 -7 -7 -7 -7 -6 -6 -6 -6 -6 -5 -5 -5 -5 -5 -5 -4 -4 ----------- Run | Yrd Mat Min Exi Min Mat Fac Low Low Zio Pro Fac Low Low Dat Pro Fac Ext Cet Arc Hub Fac Arm Matter Collected 7128 | 176 135 35 507 283 1063 216 96 368 10 500 412 196 80 275 297 139 847 201 214 115 225 738 Remotely 195 | . 68 . . 50 77 . . . . . . . . . . . . . . . . . Salvage Created 11004 | 47 103 14 . 136 948 413 159 531 . 931 1400 70 . 421 380 711 1187 415 315 544 151 2128 Parts 439 | 5 8 3 . 10 41 15 8 19 . 25 68 1 . 17 22 35 58 15 14 18 2 55 Haulers Intercepted 8 | . . . . . 5 1 . 1 . . . . . . . . 1 . . . . . Recyclers Shooed 3 | . . . . . 1 . . . . . . . . . . . 1 . . . 1 . Parts Field Recycled . | . . . . . . . . . . . . . . . . . . . . . . . Retrieved Matter . | . . . . . . . . . . . . . . . . . . . . . . . Parts Self-Destructed 68 | . . . . . . . 2 8 1 45 . 1 1 . 10 . . . . . . . Prevented 43 | . . . . . . . 5 16 . 11 . . . . 11 . . . . . . . Parts Restored . | . . . . . . . . . . . . . . . . . . . . . . . Kills | -11 -10 -10 -10 -9 -8 -7 -7 -7 -7 -6 -6 -6 -6 -6 -5 -5 -5 -5 -5 -5 -4 -4 ------- Run | Yrd Mat Min Exi Min Mat Fac Low Low Zio Pro Fac Low Low Dat Pro Fac Ext Cet Arc Hub Fac Arm Combat Hostiles Destroyed 150 | . 4 3 . 8 20 5 3 8 . 13 17 1 . 4 10 8 6 5 . 4 . 31 Melee 41 | . . . . . . 3 . 1 . 4 2 . . 4 1 6 3 . . . . 17 Guns 4 | . . . . . 2 . . . . . . . . . . . 2 . . . . . Cannons 33 | . 4 3 . 8 18 . . . . . . . . . . . . . . . . . AOE 41 | . . . . . . . 2 6 . 4 15 1 . . 7 2 . . . 3 . 1 Classes Destroyed 21 | 1 1 1 . . 7 2 . . . 4 1 1 . . . . 2 . . . . 1 Worker 9 | . . . . . . 3 . . . . 3 . . . . . 1 . . 1 1 . Builder 9 | . . . . . 2 . . . . . 2 . . . . . 1 . . 3 1 . Tunneler 8 | 2 . . . 1 . . . . . . 2 . . . . . . . . 3 . . Hauler 8 | . . . . . 5 1 . 1 . . . . . . . . 1 . . . . . Recycler 18 | . . . . . 3 1 . . . 2 4 . . . . 2 3 . . 2 1 . Mechanic 1 | . . . . . . . . . . . 1 . . . . . . . . . . . Operator 13 | . . . . . 1 1 . . . . 1 . . . . . . . 9 . . 1 Drone 1 | . . . . . . . . . . 1 . . . . . . . . . . . . Watcher 8 | . . . . . 2 . . . . 2 . . . . . . . 2 . . . 2 Swarmer 26 | . . 3 . 5 . . . . . 2 10 1 . . 5 . . . . . . . Grunt 58 | . 4 . . 3 15 1 3 8 . 4 5 . . . 3 2 . . . 2 . 8 Brawler 5 | . . . . . . . . . . 1 1 . . . . . 1 . . . . 2 Duelist 3 | . . . . . . . . . . 2 . . . . . . . . . . . 1 Sentry 17 | . . . . . 4 1 . . . 1 . . . . . . 4 . . 2 . 5 Specialist 8 | . . . . . . . . . . . . . . . . . . . . . . 8 Hunter 8 | . . . . . 1 2 . . . 1 . . . . . 2 . . . . . 2 Programmer 15 | . . . . . . 1 . . . 1 2 . . . 2 4 . . . . . 5 Behemoth 1 | . . . . . . . . . . . . . . . . . 1 . . . . . Cetus Guard 5 | . . . . . . . . . . . . . . . . . . 5 . . . . Enhanced Grunt 5 | . . . . . . . . . . . . . . 4 . . . . . 1 . . Samaritan 2 | . . . . . . . . . . . . 1 . . 1 . . . . . . . Fireman 1 | . . . . . . . . . . . . . . . . . 1 . . . . . Mutant 1 | . . . . . . . . . . 1 . . . . . . . . . . . . Best Kill Streak 11 | 2 2 3 . 3 3 2 3 4 . 3 11 1 . 1 5 4 4 4 5 10 3 6 Combat Bots Only 6 | . 2 3 . 3 2 1 3 4 . 3 5 1 . 1 5 2 1 3 . 4 . 6 Max Kills in Single Turn 9 | 2 1 1 . 1 1 1 1 2 . 2 2 1 . 1 2 2 2 2 1 9 1 2 Gunslinging . | . . . . . . . . . . . . . . . . . . . . . . . Exploded 3 | . . . . . . . 1 2 . 2 2 1 . . 2 2 . . . 3 . 1 Melee 1 | . . . . . . 1 . 1 . 1 1 . . 1 1 1 1 . . . . 1 Uniques/NPCs Destroyed 1 | . . . . . . . . . . . . . . 1 . . . . . . . . Data Miner (-6/Data Miner) Combat | -11 -10 -10 -10 -9 -8 -7 -7 -7 -7 -6 -6 -6 -6 -6 -5 -5 -5 -5 -5 -5 -4 -4 -------- Run | Yrd Mat Min Exi Min Mat Fac Low Low Zio Pro Fac Low Low Dat Pro Fac Ext Cet Arc Hub Fac Arm Hostile Shots Fired 1428 | . 13 9 . 29 102 42 4 13 . 209 44 3 . 26 17 45 63 16 . 13 74 706 Missed 442 | . 3 1 . 12 24 15 3 8 . 62 16 . . 8 7 9 12 8 . 4 30 220 Hits 986 | . 10 8 . 17 78 27 1 5 . 147 28 3 . 18 10 36 51 8 . 9 44 486 Melee 17 | . . . . . . . . . . 8 . . . . . . . . . . . 9 Projectile 969 | . 10 8 . 17 78 27 1 5 . 139 28 3 . 18 10 36 51 8 . 9 44 477 AOE 5 | . . . . . . . . . . . . . . . . . . . . 2 . 3 Critical Strikes 39 | . . . . 1 3 2 . . . 7 . . . . . 3 2 . . . 1 20 Part Disruptions 4 | . . . . . . . . . . . . . . . . . . . . . . 4 Damage Taken 16745 | . 114 65 . 145 1241 255 16 113 . 2245 539 47 18 840 203 723 1127 204 . 689 649 7512 Core 1718 | . 11 . . 20 123 31 . 28 . 386 59 . . 192 . 74 149 24 . 22 83 516 Absorbed by Shields 602 | . . . . . . 63 . . . . . . . . . . 196 . . . 106 237 Redirected to Shielding 103 | . . . . . . . . . . 103 . . . . . . . . . . . . Ignored by Resistances 866 | . . . . . . . . . . . . . . . . . . . . . 192 674 Regen/Repaired (Parts) 11 | . . . . . 11 . . . . . . . . . . . . . . . . . Core Remaining (%) 73 | 100 . . . 87 77 . . . . 36 . . . . 70 . . . . 73 . . Volleys Fired 277 | 1 15 5 . 16 100 . 4 15 . 5 26 5 2 . 14 1 40 9 . 5 1 13 Largest 3 | 2 2 2 . 2 3 . 1 1 . 1 1 1 1 . 1 1 3 1 . 1 1 1 Hottest 240 | 80 66 66 . 66 131 . 36 36 . 36 36 39 39 . 39 36 105 240 . 50 5 46 Shots Fired 504 | 2 30 10 . 32 238 . 4 15 . 5 26 5 2 . 13 1 92 10 . 5 1 13 Gun 122 | 2 . . . . 37 . . . . . . . . . . . 82 1 . . . . Cannon 273 | . 30 10 . 32 201 . . . . . . . . . . . . . . . . . Launcher 101 | . . . . . . . 4 15 . 5 26 5 2 . 13 1 10 9 . 5 . 6 Special 8 | . . . . . . . . . . . . . . . . . . . . . 1 7 Kinetic 370 | . 30 10 . 32 216 . . . . . . . . . . . 82 . . . . . Thermal 24 | 1 . . . . 22 . . . . . . . . . . . . 1 . . . . Explosive 19 | . . . . . . . . . . . . 5 2 . 7 . . . . 5 . . Electromagnetic 83 | 1 . . . . . . 4 15 . 5 26 . . . 6 1 10 9 . . . 6 Robot Hit Streak 13 | 1 5 5 . 6 13 . 4 5 . 2 4 3 . . 4 3 11 10 . . 11 13 Robot Miss Streak 5 | . 5 1 . 2 4 . 1 1 . 2 4 . . . 2 . 4 . . . . 2 Penetration Max 3 | . . . . . . . . . . . . . . . . . 3 . . . . . Secondary Targets 1 | . . . . . . . . . . . . . . . . . 1 . . . . . Max Gunslinging Chain 1 | . . . . . . . . . . . . . . . . . 1 . . . . . Shots Hit Robots 573 | 1 12 6 . 19 148 21 3 8 . 31 23 6 . 22 8 27 68 4 18 . 7 141 Core Hits 363 | 2 4 3 . 9 52 5 3 18 . 19 43 1 1 14 18 11 42 18 3 59 1 37 Critical Kills 9 | . . . . . . 1 . . . . 1 . . . . . 3 . . . . 4 Critical Parts Destroyed 39 | . . . . . . 4 . . . 2 2 1 . . . . 10 . . . 2 18 Critical Strikes 99 | . 1 1 . 2 10 5 . . . 7 3 2 . 3 . 3 21 . . . 2 39 Burn 1 | . . . . . 1 . . . . . . . . . . . . . . . . . Destroy 19 | . . . . . . . . . . . . . . . . . 19 . . . . . Blast 13 | . 1 1 . 2 9 . . . . . . . . . . . . . . . . . Smash 38 | . . . . . . 5 . . . 2 3 2 . . . . . . . . 2 24 Sever 25 | . . . . . . . . . . 2 . . . 3 . 3 2 . . . . 15 Impale 3 | . . . . . . . . . . 3 . . . . . . . . . . . . Melee Attacks 455 | . . . . . 1 36 . 2 1 46 38 4 . 40 6 45 15 . 26 2 8 185 Impact 187 | . . . . . 1 36 . 1 . 19 16 4 . . . 10 . . . 2 6 92 Slashing 249 | . . . . . . . . 1 . 9 22 . . 40 6 35 15 . 26 . 2 93 Piercing 19 | . . . . . . . . . 1 18 . . . . . . . . . . . . Sneak Attacks 56 | . . . . . . 6 . . . 3 11 4 . 1 2 3 2 . 16 . 6 2 Combat Hostiles 2 | . . . . . . . . . . 1 . . . . . . . . . . . 1 Follow-up Attacks 88 | . . . . . . 6 . . . 5 . . . 7 1 11 1 . 5 . 2 50 Damage Inflicted 29275 | 24 264 118 . 404 3141 1371 228 901 . 1907 2952 597 188 893 1247 1370 1694 889 1623 2540 543 6381 Guns 1033 | 24 . . . . 357 . . . . . . . . . . . 652 . . . . . Cannons 3570 | . 264 118 . 404 2784 . . . . . . . . . . . . . . . . . Explosions 9222 | . . . . . . . 228 853 . 660 1595 288 188 . 905 180 541 889 . 2540 . 355 Melee 15450 | . . . . . . 1371 . 48 . 1247 1357 309 . 893 342 1190 501 . 1623 . 543 6026 Ramming . | . . . . . . . . . . . . . . . . . . . . . . . Kinetic 4406 | . 264 118 . 404 2968 . . . . . . . . . . . 652 . . . . . Thermal 1068 | 12 . . . . 173 . 22 156 . 275 167 . . . . 122 . 80 . . . 61 Explosive 1915 | . . . . . . . . . . . 153 288 188 . 507 . . . . 779 . . Electromagnetic 6436 | 12 . . . . . . 206 697 . 385 1275 . . . 398 58 541 809 . 1761 . 294 Impact 6657 | . . . . . . 1371 . . . 565 412 309 . . . . . . . . 388 3612 Slashing 8483 | . . . . . . . . 48 . 372 945 . . 893 342 1190 501 . 1623 . 155 2414 Piercing 310 | . . . . . . . . . . 310 . . . . . . . . . . . . Highest Corruption 45 | . . . . . . 1 1 1 1 11 7 7 7 7 45 8 8 38 38 30 . 30 Average Corruption 9 | . . . . . . 1 1 1 1 7 2 7 7 7 14 2 8 29 28 24 . 9 Corruption Purged 14 | . . . . . . . . . . . . . . . . . . . 14 . . . Corruption Blocked . | . . . . . . . . . . . . . . . . . . . . . . . Effects 333 | . . . . . . . 3 3 2 71 8 19 15 24 51 4 40 18 34 12 . 29 Message Errors 98 | . . . . . . . . . 1 22 2 7 8 7 14 2 10 5 7 5 . 8 Matter Fused 87 | . . . . . . . 1 2 . 18 . 3 . 11 13 . 11 8 11 3 . 6 Heat Flow Errors 40 | . . . . . . . . 1 1 8 2 3 2 1 5 . 5 2 4 2 . 4 Energy Discharges 36 | . . . . . . . 2 . . 8 1 3 4 . 3 1 7 1 3 2 . 1 Parts Rejected 2 | . . . . . . . . . . . . . . . . . 2 . . . . . Parts Fused 4 | . . . . . . . . . . 1 . . . 1 . . . . 2 . . . Data Loss (minor) 38 | . . . . . . . . . . 10 3 . 1 2 10 1 2 1 3 . . 5 Data Loss (major) 14 | . . . . . . . . . . 3 . 1 . 1 2 . 1 . 4 . . 2 Misfires 3 | . . . . . . . . . . . . . . . 1 . 1 1 . . . . Alerts 6 | . . . . . . . . . . 1 . 2 . 1 1 . . . . . . 1 Misdirections 2 | . . . . . . . . . . . . . . . . . . . . . . 2 Weapon Failures 3 | . . . . . . . . . . . . . . . 2 . 1 . . . . . Overload Shots 1 | . . . . . . . . . . . . . . . . . . 1 . . . . Overflow Damage 4249 | . 7 1 . 1 13 649 . 44 . 292 503 108 . . 99 90 7 . 721 87 313 1314 Projectiles 25 | . 7 1 . 1 13 . . . . . . . . . . . . . . . . 3 Explosions 198 | . . . . . . . . 44 . 49 4 . . . 7 . 7 . . 87 . . Melee 4026 | . . . . . . 649 . . . 243 499 108 . . 92 90 . . 721 . 313 1311 Knockbacks 63 | . 3 2 . 2 13 7 . . . 4 2 . . . . . . . . . 1 29 Impact 37 | . . . . . . 7 . . . 4 1 . . . . . . . . . 1 24 Kinetic 19 | . 3 2 . 2 12 . . . . . . . . . . . . . . . . . Secondary 7 | . . . . . 1 . . . . . 1 . . . . . . . . . . 5 Self-Inflicted Damage 724 | . . . . . . . . 41 . 68 112 . . . 19 . . . . 468 . 16 Shots 33 | . . . . . . . . 3 . 3 6 . . . 1 . . . . 19 . 1 Rammed . | . . . . . . . . . . . . . . . . . . . . . . . Targets Rammed . | . . . . . . . . . . . . . . . . . . . . . . . Kicked . | . . . . . . . . . . . . . . . . . . . . . . . Crushed . | . . . . . . . . . . . . . . . . . . . . . . . Highest Temperature 396 | 18 168 84 . 129 282 . . 236 124 295 231 264 251 195 271 . 396 256 208 236 24 181 Average Temperature 85 | 12 55 38 . 47 61 . . 107 70 104 103 106 116 105 97 . 152 102 97 123 24 74 Received Heat Transfer 2894 | . 60 . . 24 648 57 9 45 . 594 36 . . . 54 90 187 . . 54 203 833 Effects 8 | . . . . . . . . . . . . . . . . . 8 . . . . . Energy Bleed 3 | . . . . . . . . . . . . . . . . . 3 . . . . . Interference 1 | . . . . . . . . . . . . . . . . . 1 . . . . . Matter Decay 1 | . . . . . . . . . . . . . . . . . 1 . . . . . Damage (minor) 3 | . . . . . . . . . . . . . . . . . 3 . . . . . Siege Activations . | . . . . . . . . . . . . . . . . . . . . . . . Martial Activations . | . . . . . . . . . . . . . . . . . . . . . . . Shielding Activations . | . . . . . . . . . . . . . . . . . . . . . . . Robots Disrupted . | . . . . . . . . . . . . . . . . . . . . . . . Combat Hostiles . | . . . . . . . . . . . . . . . . . . . . . . . Robots Corrupted 39 | . . . . . . 5 1 1 . 7 2 . . . 2 . 1 5 . 1 . 14 Combat Hostiles 31 | . . . . . . 2 1 1 . 5 . . . . 2 . 1 5 . 1 . 13 Parts Fried 77 | . . . . . . 6 2 4 . 11 13 . . . 3 . 4 3 . 14 . 17 Impact Corruptions 87 | . . . . . . 20 . . . 13 8 1 . . . . . . . . 6 39 Robots Melted . | . . . . . . . . . . . . . . . . . . . . . . . Combat Hostiles . | . . . . . . . . . . . . . . . . . . . . . . . Parts Melted 2 | . . . . . . . . . . . . . . . . . . . . . . 2 Heat Transferred 1706 | 25 . . . . 481 . 50 200 . 300 300 . . . . 100 . 150 . . . 100 Parts Sabotaged . | . . . . . . . . . . . . . . . . . . . . . . . Parts Stolen . | . . . . . . . . . . . . . . . . . . . . . . . Parts Stripped . | . . . . . . . . . . . . . . . . . . . . . . . Power Chain Reactions 17 | . . . . . . . 1 3 . 2 8 . . . . . . 1 . . . 2 Alert | -11 -10 -10 -10 -9 -8 -7 -7 -7 -7 -6 -6 -6 -6 -6 -5 -5 -5 -5 -5 -5 -4 -4 ------- Run | Yrd Mat Min Exi Min Mat Fac Low Low Zio Pro Fac Low Low Dat Pro Fac Ext Cet Arc Hub Fac Arm Maximum Alert Level 4 | . . . . . . . . . . . 2 . . . . 1 2 1 1 4 3 3 Low Security (%) 60 | 100 100 100 . 100 100 100 . . . . 13 . . . . 92 34 35 60 78 . . Level 1 15 | . . . . . . . . . . . 3 . . . . 7 52 64 39 . . 18 Level 2 17 | . . . . . . . . . . . 82 . . . . . 12 . . . 18 59 Level 3 6 | . . . . . . . . . . . . . . . . . . . . 9 81 21 Level 4 . | . . . . . . . . . . . . . . . . . . . . 11 . . Level 5 . | . . . . . . . . . . . . . . . . . . . . . . . High Security . | . . . . . . . . . . . . . . . . . . . . . . . Max Security . | . . . . . . . . . . . . . . . . . . . . . . . Peak Influence 1433 | 10 35 92 . 85 176 74 . . . . 692 . . . . 217 457 316 286 1433 891 876 Initial 677 | . . 7 . . 21 74 . . . . 84 . . . . . 104 178 106 9 677 354 Average 235 | . 5 57 . 16 82 28 . . . . 504 . . . . 57 235 229 168 299 789 577 Influence Increases 9223 | 10 98 86 . 186 709 262 70 255 . 987 989 81 102 20 230 375 901 268 300 1580 302 1412 Destroy 0b10 Robot/C 4340 | . 80 60 . 160 400 100 60 160 . 580 460 60 80 20 200 160 440 160 80 200 20 860 Destroy 0b10 Robot/NC 455 | 10 . . . 5 65 30 . 5 . 45 75 . . . . 10 45 10 45 65 20 25 Destroy Leader 736 | . . 10 . 20 114 42 10 . . 40 92 10 10 . 30 30 54 . . 64 12 198 Allied During Kill 1352 | . . . . . . . . . . 307 181 11 12 . . . 227 59 125 329 14 87 Successful Hack 86 | . . . . . 25 28 . . . . . . . . . 4 12 . . . 10 7 Disable Machine 825 | . . 15 . . 45 30 . . . . 120 . . . . 90 . 15 30 330 120 30 Destroy Structure 919 | . 3 1 . 1 15 2 . . . . 61 . . . . 66 18 24 20 562 106 40 Lose Combat Pursuer 510 | . 15 . . . 45 30 . 90 . 15 . . . . . 15 105 . . 30 . 165 Influence Decreases 8377 | 10 79 82 23 131 598 385 113 153 102 852 647 464 196 20 230 162 795 321 540 223 962 1289 Entered New Map 2029 | . . 12 23 . 34 92 16 . 102 . 51 178 19 . . . 109 141 160 17 706 369 Time Decay 5008 | 10 79 70 . 131 504 283 97 153 . 612 386 286 157 20 210 152 486 180 380 136 206 470 Lost Part 650 | . . . . . 60 10 . . . 140 60 . . . 20 10 60 . . 10 . 280 Lost Ally 690 | . . . . . . . . . . 100 150 . 20 . . . 140 . . 60 50 170 Squads Dispatched 35 | . . . . 1 3 3 . . . 1 3 . . . . 1 4 . . 5 1 13 Investigation 9 | . . . . 1 1 2 . . . 1 . . . . . . 3 . . . . 1 Extermination 7 | . . . . . . 1 . . . . 2 . . . . 1 . . . . . 3 Reinforcement 15 | . . . . . 2 . . . . . 1 . . . . . 1 . . 4 . 7 Assault 4 | . . . . . . . . . . . . . . . . . . . . 1 1 2 Garrison . | . . . . . . . . . . . . . . . . . . . . . . . Intercept . | . . . . . . . . . . . . . . . . . . . . . . . Searches Triggered . | . . . . . . . . . . . . . . . . . . . . . . . Construction Impeded 3 | . . . . . 1 . . . . . . . . . . . 1 . . 1 . . Haulers Reinforced . | . . . . . . . . . . . . . . . . . . . . . . . Active Scanning Responses . | . . . . . . . . . . . . . . . . . . . . . . . Cargo Convoy Interrupts . | . . . . . . . . . . . . . . . . . . . . . . . Stealth | -11 -10 -10 -10 -9 -8 -7 -7 -7 -7 -6 -6 -6 -6 -6 -5 -5 -5 -5 -5 -5 -4 -4 --------- Run | Yrd Mat Min Exi Min Mat Fac Low Low Zio Pro Fac Low Low Dat Pro Fac Ext Cet Arc Hub Fac Arm Distress Signals 19 | . 2 . . . 1 1 . . . 4 2 . . . . . 2 2 . . . 5 Communications Jammed 9 | . . . . . . . . . . . . . . . . . . . . . . 9 Distress Signals 4 | . . . . . . . . . . . . . . . . . . . . . . 4 Times Spotted 294 | . 7 2 . 9 36 11 2 11 . 33 23 3 1 4 7 10 25 8 7 17 9 69 Peak Tracking Total 10 | . 3 2 . 3 4 3 3 5 . 5 4 3 4 2 5 3 6 5 1 6 7 10 Tactical Retreats 23 | . 1 . . . 3 2 . 3 . 1 . . . 1 . 1 4 . . 1 . 6 Traps | -11 -10 -10 -10 -9 -8 -7 -7 -7 -7 -6 -6 -6 -6 -6 -5 -5 -5 -5 -5 -5 -4 -4 ------- Run | Yrd Mat Min Exi Min Mat Fac Low Low Zio Pro Fac Low Low Dat Pro Fac Ext Cet Arc Hub Fac Arm Traps Triggered 5 | . 2 . . . 1 1 . . . . . . . . . . 1 . . . . . Indirectly 1 | . . . . . . . . . . . . . . . . . 1 . . . . . Trap Hack Attempts . | . . . . . . . . . . . . . . . . . . . . . . . Triggered . | . . . . . . . . . . . . . . . . . . . . . . . Disarmed . | . . . . . . . . . . . . . . . . . . . . . . . Reprogrammed . | . . . . . . . . . . . . . . . . . . . . . . . Reused . | . . . . . . . . . . . . . . . . . . . . . . . Traps Extracted . | . . . . . . . . . . . . . . . . . . . . . . . Installed . | . . . . . . . . . . . . . . . . . . . . . . . Triggered . | . . . . . . . . . . . . . . . . . . . . . . . Machines | -11 -10 -10 -10 -9 -8 -7 -7 -7 -7 -6 -6 -6 -6 -6 -5 -5 -5 -5 -5 -5 -4 -4 ---------- Run | Yrd Mat Min Exi Min Mat Fac Low Low Zio Pro Fac Low Low Dat Pro Fac Ext Cet Arc Hub Fac Arm Machines Disabled 59 | . . 1 . . 3 2 . . . 4 8 . . . . 6 . 1 2 22 8 2 Max in Single Turn 15 | . . 1 . . 1 1 . . . 1 4 . . . . 4 . 1 . 15 . 1 Network Hub 2 | . . . . . . . . . . . . . . . . . . . . 2 . . Machines Repaired . | . . . . . . . . . . . . . . . . . . . . . . . Machines Dismantled . | . . . . . . . . . . . . . . . . . . . . . . . Machines Sabotaged . | . . . . . . . . . . . . . . . . . . . . . . . Overloaded Fab Kills . | . . . . . . . . . . . . . . . . . . . . . . . Hacking | -11 -10 -10 -10 -9 -8 -7 -7 -7 -7 -6 -6 -6 -6 -6 -5 -5 -5 -5 -5 -5 -4 -4 --------- Run | Yrd Mat Min Exi Min Mat Fac Low Low Zio Pro Fac Low Low Dat Pro Fac Ext Cet Arc Hub Fac Arm Machines Accessed 31 | . 2 . 1 1 4 4 2 . . 2 . 1 . 4 . 2 3 1 . . 1 3 Terminals 14 | . 1 . . . 3 3 1 . . . . . . . . 1 3 1 . . . 1 Fabricators 4 | . . . . . . 1 . . . 1 . . . . . . . . . . . 2 Repair Stations 2 | . . . . . 1 . . . . . . . . . . 1 . . . . . . Recycling Units 3 | . 1 . . . . . . . . 1 . . . . . . . . . . 1 . Scanalyzers . | . . . . . . . . . . . . . . . . . . . . . . . Garrison Access . | . . . . . . . . . . . . . . . . . . . . . . . Total Hacks 90 | . 4 . 4 1 13 8 2 . . 4 . 1 . 28 . 3 10 1 . . 7 4 Successful 60 | . 3 . 4 1 6 2 2 . . 3 . 1 . 28 . 1 3 . . . 3 3 Failed 30 | . 1 . . . 7 6 . . . 1 . . . . . 2 7 1 . . 4 1 Catastrophic 8 | . 1 . . . 2 3 . . . . . . . . . . 1 1 . . . . Database Lockouts . | . . . . . . . . . . . . . . . . . . . . . . . Manual 50 | . 2 . . . 9 5 . . . 1 16 . . . . 1 6 1 . 5 . 4 Terminals 32 | . 2 . . . 9 6 1 . . . . . . . . 2 10 1 . . . 1 Fabricators 8 | . . . . . . 2 . . . 3 . . . . . . . . . . . 3 Repair Stations 5 | . . . . . 4 . . . . . . . . . . 1 . . . . . . Recycling Units 10 | . 2 . . . . . . . . 1 . . . . . . . . . . 7 . Scanalyzers . | . . . . . . . . . . . . . . . . . . . . . . . Garrison Access . | . . . . . . . . . . . . . . . . . . . . . . . Terminal Hacks 46 | . 1 . 4 1 3 1 2 . . . . 1 . 28 . 1 3 . . . . 1 Record 16 | . . . 4 . . . 1 . . . . . . 11 . . . . . . . . Part Schematic 10 | . 1 . . . . . . . . . . . . 9 . . . . . . . . Robot Schematic 5 | . . . . . . . . . . . . . . 5 . . . . . . . . Prototype ID Bank 3 | . . . . . . . . . . . . . . 3 . . . . . . . . Open Door 8 | . . . . 1 . . 1 . . . . 1 . . . 1 3 . . . . 1 Hauler Manifests 2 | . . . . . 1 1 . . . . . . . . . . . . . . . . Registered Components 1 | . . . . . 1 . . . . . . . . . . . . . . . . . Zone Layout 1 | . . . . . 1 . . . . . . . . . . . . . . . . . Fabricator Hacks 4 | . . . . . . . . . . 2 . . . . . . . . . . . 2 Load Schematic 2 | . . . . . . . . . . 1 . . . . . . . . . . . 1 Build 2 | . . . . . . . . . . 1 . . . . . . . . . . . 1 Repair Station Hacks 2 | . . . . . 2 . . . . . . . . . . . . . . . . . Scan Component 1 | . . . . . 1 . . . . . . . . . . . . . . . . . Repair 1 | . . . . . 1 . . . . . . . . . . . . . . . . . Recycling Unit Hacks 6 | . 2 . . . . . . . . 1 . . . . . . . . . . 3 . Recycle Component 1 | . . . . . . . . . . . . . . . . . . . . . 1 . Process 2 | . 1 . . . . . . . . . . . . . . . . . . . 1 . Retrieve Matter 2 | . 1 . . . . . . . . . . . . . . . . . . . 1 . Retrieve Components 1 | . . . . . . . . . . 1 . . . . . . . . . . . . Scanalyzer . | . . . . . . . . . . . . . . . . . . . . . . . Garrison Access Hacks . | . . . . . . . . . . . . . . . . . . . . . . . Unauthorized Hacks 2 | . . . . . 1 1 . . . . . . . . . . . . . . . . Terminals 2 | . . . . . 1 1 . . . . . . . . . . . . . . . . Botnet 2 | . . . . . 1 1 . . . . . . . . . . . . . . . . Fabricators . | . . . . . . . . . . . . . . . . . . . . . . . Repair Stations . | . . . . . . . . . . . . . . . . . . . . . . . Recycling Units . | . . . . . . . . . . . . . . . . . . . . . . . Scanalyzers . | . . . . . . . . . . . . . . . . . . . . . . . Garrison Access . | . . . . . . . . . . . . . . . . . . . . . . . Data Cores Recovered . | . . . . . . . . . . . . . . . . . . . . . . . Used . | . . . . . . . . . . . . . . . . . . . . . . . Hacking Detections 19 | . 2 . . . 4 4 1 . . 2 . . . . . 1 1 1 . . 1 2 Full Trace Events 6 | . 1 . . . 1 1 . . . 1 . . . . . . 1 . . . . 1 Feedback Events 1 | . . . . . . 1 . . . . . . . . . . . . . . . . Corruption 1 | . . . . . . 1 . . . . . . . . . . . . . . . . Feedback Blocked . | . . . . . . . . . . . . . . . . . . . . . . . Robot Schematics Acquired 9 | . . . . . . . . . 4 . . . . 5 . . . . . . . . Robots Built 2 | . . . . . . . . . . . . . . . . . . . . . . 2 Authchips . | . . . . . . . . . . . . . . . . . . . . . . . Time 152 | . . . . . . . . . . . . . . . . . . . . . . 152 Total Robot Build Rating 10 | . . . . . . . . . . . . . . . . . . . . . . 10 Part Schematics Acquired 23 | . 1 . . . . . . . 13 . . . . 9 . . . . . . . . Parts Built 1 | . . . . . . . . . . 1 . . . . . . . . . . . . Authchips . | . . . . . . . . . . . . . . . . . . . . . . . Time 25 | . . . . . . . . . . 25 . . . . . . . . . . . . Total Part Build Rating 1 | . . . . . . . . . . 1 . . . . . . . . . . . . Part Studies Acquired . | . . . . . . . . . . . . . . . . . . . . . . . Parts Repaired 1 | . . . . . 1 . . . . . . . . . . . . . . . . . Time 54 | . . . . . 54 . . . . . . . . . . . . . . . . . Parts Recycled 1 | . . . . . . . . . . . . . . . . . . . . . 1 . Recycled Matter 200 | . 145 . . . . . . . . . . . . . . . . . . . 55 . Retrieved Matter 200 | . 145 . . . . . . . . . . . . . . . . . . . 55 . Retrieved Components 7 | . . . . . . . . . . 7 . . . . . . . . . . . . Parts Scanalyzed . | . . . . . . . . . . . . . . . . . . . . . . . Part Schematics Acquired . | . . . . . . . . . . . . . . . . . . . . . . . Parts Damaged . | . . . . . . . . . . . . . . . . . . . . . . . Bothacking | -11 -10 -10 -10 -9 -8 -7 -7 -7 -7 -6 -6 -6 -6 -6 -5 -5 -5 -5 -5 -5 -4 -4 ------------ Run | Yrd Mat Min Exi Min Mat Fac Low Low Zio Pro Fac Low Low Dat Pro Fac Ext Cet Arc Hub Fac Arm Used RIF Installer . | . . . . . . . . . . . . . . . . . . . . . . . Robots Hacked 1 | . . . . . . . . . . . . . . . . . . . . . 1 . Non-combat 1 | . . . . . . . . . . . . . . . . . . . . . 1 . Combat . | . . . . . . . . . . . . . . . . . . . . . . . Robot Hacks Applied 1 | . . . . . . . . . . . . . . . . . . . . . 1 . find_chute 1 | . . . . . . . . . . . . . . . . . . . . . 1 . Relay Couplers Released . | . . . . . . . . . . . . . . . . . . . . . . . Fabnet Peak Effective % . | . . . . . . . . . . . . . . . . . . . . . . . Robots Rewired 19 | . . . . . . . . . . 11 . . . . . . 4 . . . . 4 Allies Hacked . | . . . . . . . . . . . . . . . . . . . . . . . Hacks Repelled . | . . . . . . . . . . . . . . . . . . . . . . . Allies | -11 -10 -10 -10 -9 -8 -7 -7 -7 -7 -6 -6 -6 -6 -6 -5 -5 -5 -5 -5 -5 -4 -4 -------- Run | Yrd Mat Min Exi Min Mat Fac Low Low Zio Pro Fac Low Low Dat Pro Fac Ext Cet Arc Hub Fac Arm Total Allies 51 | . . . . . . . . . 9 13 3 . . . . . 10 5 . 2 . 9 Largest Group 12 | . . . . . . . . . 9 12 12 2 2 . . . 9 6 6 7 3 4 Highest-Rated Group 592 | . . . . . . . . . 292 326 326 70 70 . . . 395 592 592 534 207 288 Highest-Rated Ally 159 | . . . . . . . . . 41 96 96 35 35 . . . 159 112 112 96 96 96 Zionite Dispatches 7 | . . . . . . . . . . . 3 . . . . . 1 . . 2 . 1 Light 1 | . . . . . . . . . . . . . . . . . . . . . . 1 Recon 1 | . . . . . . . . . . . 1 . . . . . . . . . . . Fire 1 | . . . . . . . . . . . . . . . . . 1 . . . . . Demo 1 | . . . . . . . . . . . 1 . . . . . . . . . . . Explosive Resupply 2 | . . . . . . . . . . . 1 . . . . . . . . 1 . . Hacking Resupply 1 | . . . . . . . . . . . . . . . . . . . . 1 . . Total Orders 29 | . . . . . . . . . . 2 2 . . . . . . . 3 12 6 4 STAY 5 | . . . . . . . . . . 1 1 . . . . . . . . 2 1 . ROAM 1 | . . . . . . . . . . . . . . . . . . . 1 . . . FOLLOW 6 | . . . . . . . . . . 1 . . . . . . . . 2 2 1 . DROP 3 | . . . . . . . . . . . 1 . . . . . . . . 2 . . EXPLORE 6 | . . . . . . . . . . . . . . . . . . . . 3 2 1 RETURN 8 | . . . . . . . . . . . . . . . . . . . . 3 2 3 Ally Attacks 419 | . . . . . . . . . . 114 37 7 5 . . . 111 10 32 31 9 63 Total Damage 12729 | . . . . . . . . . . 3966 617 257 465 . . . 2301 579 1349 1169 443 1583 Kills 94 | . . . . . . . . . . 25 9 3 4 . . . 20 3 4 10 2 14 Allies Corrupted 2 | . . . . . . . . . . . 2 . . . . . . . . . . . Allies Melted . | . . . . . . . . . . . . . . . . . . . . . . . Intel | -11 -10 -10 -10 -9 -8 -7 -7 -7 -7 -6 -6 -6 -6 -6 -5 -5 -5 -5 -5 -5 -4 -4 ------- Run | Yrd Mat Min Exi Min Mat Fac Low Low Zio Pro Fac Low Low Dat Pro Fac Ext Cet Arc Hub Fac Arm Active Infowar (turns) 8751 | . . . . . 1 326 455 101 1217 966 904 638 451 292 1286 516 116 . 275 113 284 810 Sensors 8369 | . . . . . 1 178 455 101 1217 966 882 638 451 292 1286 493 116 . 275 113 284 621 Traps 1502 | . . . . . . . . . . . 837 508 . . . 48 109 . . . . . Seismic 148 | . . . . . . 148 . . . . . . . . . . . . . . . . Jamming 910 | . . . . . . . . . . . . . . . . 466 . . . . . 444 ECM 2 | . . . . . . . . . . . . . 2 . . . . . . . . . Robot Analysis Total 154 | . . . . . . . . . . . . . . 154 . . . . . . . . Derelict Logs Recovered 7 | . . . . 1 . . . 2 2 1 . . . . 1 . . . . . . . Drone Launches 8 | . . . . . . . . . . . . . . . . . . . . 3 2 3 Drone Recoveries 7 | . . . . . . . . . . . . . . . . . . . . 2 2 3 Zionite Intel Received 3 | . . . . . . . . . . . 2 . . . . . 1 . . . . . Emergency Access 1 | . . . . . . . . . . . 1 . . . . . . . . . . . Prototype Stockpiles 1 | . . . . . . . . . . . 1 . . . . . . . . . . . Trap Installations 1 | . . . . . . . . . . . . . . . . . 1 . . . . . Exploration | -11 -10 -10 -10 -9 -8 -7 -7 -7 -7 -6 -6 -6 -6 -6 -5 -5 -5 -5 -5 -5 -4 -4 ------------- Run | Yrd Mat Min Exi Min Mat Fac Low Low Zio Pro Fac Low Low Dat Pro Fac Ext Cet Arc Hub Fac Arm Turns Passed 18452 | 98 464 147 395 817 1637 767 504 547 1217 2737 904 638 451 809 1286 579 1266 360 883 320 431 1195 Spaces Moved 9383 | 56 191 56 162 315 562 453 425 382 907 1308 506 459 364 422 619 250 546 190 438 165 230 377 Core 5 | 5 . . . . . . . . . . . . . . . . . . . . . . Treads 2723 | 51 191 56 162 315 62 143 . . . 368 . . . . . . . 165 438 165 230 377 Legs 2082 | . . . . . 500 . . . . . . . . 142 619 250 546 25 . . . . Wheels 4573 | . . . . . . 310 425 382 907 940 506 459 364 280 . . . . . . . . Hover . | . . . . . . . . . . . . . . . . . . . . . . . Flight . | . . . . . . . . . . . . . . . . . . . . . . . Fastest Speed 50 | 50 160 240 240 240 122 101 101 108 108 108 118 118 120 96 190 120 186 160 160 160 160 160 Average Speed 159 | 150 201 240 240 240 209 134 109 119 108 177 127 129 120 148 190 170 189 165 160 160 160 175 Slowest Speed 490 | 160 320 240 240 240 263 320 120 120 108 490 175 135 120 190 190 190 190 240 160 160 162 270 Overloaded Moves . | . . . . . . . . . . . . . . . . . . . . . . . Propulsion Burnouts . | . . . . . . . . . . . . . . . . . . . . . . . Robots Hopped 2 | . . . . . . . . . . . . . . . . . . . . . . 2 Potential Cave-ins 3 | . . . . . . . . . . . . . . . . . . . . . . 3 Cave-ins Triggered . | . . . . . . . . . . . . . . . . . . . . . . . Exploration Rate (%) 47 | 4 32 13 49 71 46 13 53 51 87 67 19 56 63 80 67 8 68 67 97 48 13 29 Regions Visited 22 Branch Regions 16 Pre-discovered Areas 31 | . . . 1 1 . . . . 1 . . . . 28 . . . . . . . . Known Exits Taken 17 | . . . . . 1 1 1 1 1 1 1 1 1 1 1 1 1 1 1 1 1 . Unknown Exits Taken 5 | 1 1 1 1 1 . . . . . . . . . . . . . . . . . . Scrap Searched 19 | . . . . 2 . . 1 4 3 2 . 3 3 . 1 . . . . . . . Spaces Dug 44 | . . . . . 2 2 . . . . 16 . . . 1 11 . . . 1 . 11 Terrain Destroyed 715 | . 3 1 . 1 10 2 7 15 . 7 63 20 8 . 59 35 . 6 . 452 . 26 Melee 42 | . . . . . . 2 . . . . 16 . . . 1 11 . . . 1 . 11 Projectile 15 | . 3 1 . 1 10 . . . . . . . . . . . . . . . . . AOE 658 | . . . . . . . 7 15 . 7 47 20 8 . 58 24 . 6 . 451 . 15 Terrain Rammed . | . . . . . . . . . . . . . . . . . . . . . . . Walls Destroyed . | . . . . . . . . . . . . . . . . . . . . . . . Machines Disabled . | . . . . . . . . . . . . . . . . . . . . . . . Actions | -11 -10 -10 -10 -9 -8 -7 -7 -7 -7 -6 -6 -6 -6 -6 -5 -5 -5 -5 -5 -5 -4 -4 --------- Run | Yrd Mat Min Exi Min Mat Fac Low Low Zio Pro Fac Low Low Dat Pro Fac Ext Cet Arc Hub Fac Arm Total 11809 | 66 238 60 169 344 835 559 460 454 1143 1653 679 493 376 560 706 345 689 233 593 205 284 665 Wait 891 | . 15 . 5 4 74 23 10 37 236 95 29 . 1 33 50 38 22 5 116 8 6 84 Move 9357 | 55 190 55 161 314 561 452 424 381 906 1307 505 458 363 421 618 249 545 189 437 164 229 373 Hop 2 | . . . . . . . . . . . . . . . . . . . . . . 2 Pick Up 246 | 4 6 . 3 8 30 18 6 3 . 47 19 8 1 37 4 6 11 7 4 4 11 9 Fast Attach 108 | 5 6 . . . 8 7 1 3 . 18 14 1 4 5 4 1 11 2 4 3 4 7 Attach 105 | 1 . . . . 17 5 1 2 . 12 11 3 1 8 4 3 7 1 1 5 6 17 Detach 17 | . . . . . 1 1 . . . . 6 . . 1 . . 3 . . 2 2 1 Swap 139 | . 3 . . 2 9 12 6 6 . 7 10 2 . 8 2 11 9 7 5 5 7 28 Drop 224 | . 3 . . . 34 16 8 6 . 27 26 10 4 15 5 5 15 13 9 7 14 7 Fire 277 | 1 15 5 . 16 100 . 4 15 . 5 26 5 2 . 14 1 40 9 . 5 1 13 Melee 320 | . . . . . 1 25 . 1 1 36 33 4 . 32 5 31 11 . 17 2 4 117 Ram . | . . . . . . . . . . . . . . . . . . . . . . . Kick . | . . . . . . . . . . . . . . . . . . . . . . . Crush . | . . . . . . . . . . . . . . . . . . . . . . . Escape Stasis . | . . . . . . . . . . . . . . . . . . . . . . . Rewire 123 | . . . . . . . . . . 99 . 2 . . . . 15 . . . . 7 Trap . | . . . . . . . . . . . . . . . . . . . . . . . Miscellaneous . | . . . . . . . . . . . . . . . . . . . . . . . Route ------- -11/Scrapyard -10/Materials (discovered 2 exits: [*Mat] / [*Min]) -10/Mines -10/Exiles -9/Mines -8/Materials -7/Factory -7/Lower Caves -7/Lower Caves (discovered 2 exits: *Fac / *Zio) -7/Zion -6/Proximity Caves -6/Factory (discovered 2 exits: Fac / *Low) -6/Lower Caves -6/Lower Caves (discovered 2 exits: *Fac / *Dat) -6/Data Miner -5/Proximity Caves -5/Factory (discovered 4 exits: *Fac / *Upp x2 / *Ext) -5/Extension (discovered 2 exits: *Fac / *Cet) -5/Cetus (discovered 2 exits: *Fac / *Arc) -5/Archives (discovered 3 exits: *Fac / *Hub x2) -5/Hub_04(d) -4/Factory -4/Armory History --------- Turn | Location | Event 7 | -11/Scrapyard | Discovered new exit (range 15) 99 | -11/Scrapyard | Entered Materials 312 | -10/Materials | Build established: Mutant 533 | -10/Materials | Discovered new exit (range 8) 538 | -10/Materials | Discovered new exit (range 13) 563 | -10/Materials | Entered Mines 698 | -10/Mines | Deemed a non-threat by the Exiles lab entrance 698 | -10/Mines | Discovered new exit (range 5) 710 | -10/Mines | Entered Exiles 768 | -10/Exiles | Met 8R-AWN 809 | -10/Exiles | Met EX-HEX 902 | -10/Exiles | Met EX-DEC 917 | -10/Exiles | Learned location of Zion (-7) 1071 | -10/Exiles | Discovered new exit (range 14) 1105 | -10/Exiles | Entered Mines 1106 | -9/Mines | YI-UF0 nonchalantly dropped a Grenade Launcher on the ground 1154 | -9/Mines | Learned location of Storage (-9) 1496 | -9/Mines | Found a damaged Exp. Sensor Array with a note attached 1504 | -9/Mines | Found Prototype Device 1834 | -9/Mines | Discovered new exit (range 16) 1852 | -9/Mines | Met a Derelict shopkeep closing up shop 1922 | -9/Mines | Entered Materials 1922 | -8/Materials | Evolved 4 slots: Propulsion x2, Utility x1, Weapon x1 2385 | -8/Materials | Discovered new exit (range 15) 2428 | -8/Materials | Build established: Gunner 2434 | -8/Materials | Identified Exp. Sensor Array 2490 | -8/Materials | Repaired Exp. Sensor Array? 3354 | -8/Materials | Identified exit to Factory 3559 | -8/Materials | Entered Factory 3559 | -7/Factory | Evolved 2 slots: Propulsion x2 4092 | -7/Factory | Build established: Mutant 4130 | -7/Factory | Discovered new exit (range 8) 4147 | -7/Factory | Identified exit to Lower Caves 4326 | -7/Factory | Entered Lower Caves 4799 | -7/Lower Caves | Discovered new exit (range 16) 4829 | -7/Lower Caves | Identified exit to Lower Caves 4830 | -7/Lower Caves | Entered another Lower Caves area 4851 | -7/Lower Caves | Learned location of 1 exit from Factory 4883 | -7/Lower Caves | Discovered new exit (range 8) 4950 | -7/Lower Caves | Learned Factory terminal intel 5254 | -7/Lower Caves | Discovered new exit (range 14) 5371 | -7/Lower Caves | Identified exit to Zion 5377 | -7/Lower Caves | Entered Zion 5411 | -7/Zion | Gained Derelict followers 5492 | -7/Zion | Discovered new exit (range 15) 5575 | -7/Zion | System corruption cleaned by Quarantine Array 5597 | -7/Zion | Learned location of 1 exit from Factory 5875 | -7/Zion | Given A8's code to call for help 5908 | -7/Zion | Learned location of Warlord (-5) 6125 | -7/Zion | Received a visual enhancement algorithm 6155 | -7/Zion | Met Imprinter 6175 | -7/Zion | Imprinted 6177 | -7/Zion | Declared Zion's savior 6364 | -7/Zion | Identified exit to Proximity Caves 6594 | -7/Zion | Entered Proximity Caves 6594 | -6/Proximity Caves | Accompanied by 9 allies 6879 | -6/Proximity Caves | Learned 4 Factory zone layouts 6900 | -6/Proximity Caves | Attracted the attention of an 0b10 checkpoint 7253 | -6/Proximity Caves | Snuck into a huge 0b10 base via the rear entrance 7354 | -6/Proximity Caves | Lost 4 allies 7382 | -6/Proximity Caves | Lost 3 parts (3n) 7389 | -6/Proximity Caves | Enhanced Grunt warped into view, answering call for help 7395 | -6/Proximity Caves | Enhanced Grunt warped into view, answering call for help 7534 | -6/Proximity Caves | Spotted B-75 Beast 7585 | -6/Proximity Caves | Lost 5 parts (3n1u1w) 7671 | -6/Proximity Caves | Discovered new exit (range 16) 7802 | -6/Proximity Caves | Core integrity fell below 50% 7840 | -6/Proximity Caves | Lost 3 parts (1p1n1u) 8221 | -6/Proximity Caves | Fabricated Cargo Storage Unit? 8272 | -6/Proximity Caves | Build established: Scavenger-Mutant 8329 | -6/Proximity Caves | System corruption reached 10% 8591 | -6/Proximity Caves | Build established: Hauler-Mutant 8644 | -6/Proximity Caves | Identified exit to Factory 9225 | -6/Proximity Caves | Build established: Commander-Mutant 9331 | -6/Proximity Caves | Entered Factory 9331 | -6/Factory | Accompanied by 12 allies 9331 | -6/Factory | Evolved 2 slots: Utility x2 9332 | -6/Factory | Identified exit to Factory 9332 | -6/Factory | Identified exit to Lower Caves 9334 | -6/Factory | Loaded intel: 26 terminal locations 9396 | -6/Factory | Lost 6 allies 9699 | -6/Factory | Build established: Hauler-Assassin 9731 | -6/Factory | Retrieved Zion intel report: Prototype Stockpiles 9732 | -6/Factory | Zion Recon squad teleported in 9748 | -6/Factory | Zion Explosive Resupply teleported in 9753 | -6/Factory | Found Prototype Launcher 9753 | -6/Factory | Identified Gui. Missile Launcher 9764 | -6/Factory | Found Prototype Launcher 9764 | -6/Factory | Identified Scatter Rocket Array 9951 | -6/Factory | Lost 3 allies 9955 | -6/Factory | Lost 3 parts (3n) 10211 | -6/Factory | Retrieved Zion intel report: Emergency Access 10212 | -6/Factory | Zion Demo squad teleported in 10235 | -6/Factory | Entered Lower Caves 10235 | -6/Lower Caves | Accompanied by 2 allies 10488 | -6/Lower Caves | Encountered a Warlord checkpoint 10594 | -6/Lower Caves | Discovered new exit (range 14) 10610 | -6/Lower Caves | Identified exit to Lower Caves 10873 | -6/Lower Caves | Entered another Lower Caves area 10873 | -6/Lower Caves | Accompanied by 2 allies 10873 | -6/Lower Caves | Discovered exit to Factory (range 13) 11054 | -6/Lower Caves | Build established: Scavenger-Mutant 11209 | -6/Lower Caves | Encountered a Warlord checkpoint 11312 | -6/Lower Caves | Discovered new exit (range 6) 11318 | -6/Lower Caves | Identified exit to Data Miner 11324 | -6/Lower Caves | Entered Data Miner 11324 | -6/Data Miner | Discovered new exit (range 7) 11347 | -6/Data Miner | Met Data Miner 11369 | -6/Data Miner | Learned location of Section 7 (-2) 11369 | -6/Data Miner | Acquired the access code to Warlord's prototype stash 11388 | -6/Data Miner | Received God Mode back door access code from Data Miner 11412 | -6/Data Miner | Destroyed Data Miner 11415 | -6/Data Miner | Found Prototype Hackware 11417 | -6/Data Miner | Found Prototype Hackware 11420 | -6/Data Miner | Interfaced with the Data Conduit 11536 | -6/Data Miner | Lost 5 parts (1p3n1u) 11791 | -6/Data Miner | Found Prototype Hackware 11812 | -6/Data Miner | Build established: Scavenger-Gladiator 11966 | -6/Data Miner | Found Exp. Thermal Shield 12023 | -6/Data Miner | Found Exp. Thermal Shield 12128 | -6/Data Miner | Identified exit to Proximity Caves 12133 | -6/Data Miner | Entered Proximity Caves 12465 | -5/Proximity Caves | Build established: Hauler-Mutant 12971 | -5/Proximity Caves | System corruption reached 10% 13086 | -5/Proximity Caves | Learned 4 Factory zone layouts 13179 | -5/Proximity Caves | Discovered exit to Factory (range 11) 13301 | -5/Proximity Caves | Build established: Hauler-Gladiator 13309 | -5/Proximity Caves | System corruption reached 30% 13419 | -5/Proximity Caves | Entered Factory 13419 | -5/Factory | Evolved 2 slots: Propulsion x1, Utility x1 13420 | -5/Factory | Identified exit to Upper Caves 13422 | -5/Factory | Loaded intel: 294 machine locations 13719 | -5/Factory | Build established: Scavenger-Gladiator 13747 | -5/Factory | Discovered exit to Upper Caves (range 11) 13817 | -5/Factory | Discovered new exit (range 13) 13852 | -5/Factory | Identified exit to Factory 13988 | -5/Factory | Discovered new exit (range 6) 13994 | -5/Factory | Identified exit to Extension 13998 | -5/Factory | Entered Extension 13999 | -5/Extension | Loaded intel: 34 machine locations 14158 | -5/Extension | Rescued A7 14193 | -5/Extension | Rescued a captive Derelict 14248 | -5/Extension | Lost 3 parts (1p2n) 14331 | -5/Extension | Retrieved Zion intel report: Trap Installations 14332 | -5/Extension | Zion Fire squad teleported in 14445 | -5/Extension | Rescued a captive Derelict 14683 | -5/Extension | Build established: Scavenger-Tank 14846 | -5/Extension | Spotted B-75 Beast 14868 | -5/Extension | Spotted B-75 Beast 14914 | -5/Extension | Destroyed B-75 Beast 14918 | -5/Extension | Lost 6 allies 14929 | -5/Extension | Lost 3 parts (1p2n) 15229 | -5/Extension | Discovered exit to Factory (range 16) 15229 | -5/Extension | Discovered new exit (range 16) 15232 | -5/Extension | Terminal network hard line cut 15262 | -5/Extension | Identified exit to Cetus 15264 | -5/Extension | Entered Cetus 15264 | -5/Cetus | Accompanied by 1 ally (A7) 15265 | -5/Cetus | Loaded intel: 24 machine locations 15269 | -5/Cetus | Acquired a Cetus Manufacturing Module code from A7 15276 | -5/Cetus | Build established: Hauler-Gladiator 15287 | -5/Cetus | Spotted Cetus Guard 15287 | -5/Cetus | Spotted Cetus Guard 15291 | -5/Cetus | Spotted Cetus Guard 15293 | -5/Cetus | Allies destroyed Cetus Guard 15293 | -5/Cetus | Spotted Cetus Guard 15295 | -5/Cetus | Allies destroyed Cetus Guard 15298 | -5/Cetus | Destroyed Cetus Guard 15299 | -5/Cetus | Destroyed Cetus Guard 15327 | -5/Cetus | System corruption reached 10% 15442 | -5/Cetus | Started Cetus Manufacturing Module 15452 | -5/Cetus | System corruption reached 30% 15458 | -5/Cetus | Escorted A7 to Cetus Mainframe 15467 | -5/Cetus | Manufactured an Enhanced Grunt 15484 | -5/Cetus | Discovered new exit (range 16) 15492 | -5/Cetus | Manufactured an Enhanced Grunt 15516 | -5/Cetus | Spotted Cetus Guard 15517 | -5/Cetus | Manufactured an Enhanced Grunt 15517 | -5/Cetus | Spotted Cetus Guard 15520 | -5/Cetus | Spotted Cetus Guard 15522 | -5/Cetus | Destroyed Cetus Guard 15522 | -5/Cetus | Destroyed Cetus Guard 15522 | -5/Cetus | Spotted Cetus Guard 15525 | -5/Cetus | Destroyed Cetus Guard 15527 | -5/Cetus | Allies destroyed Cetus Guard 15535 | -5/Cetus | Discovered exit to Factory (range 16) 15542 | -5/Cetus | Manufactured an Enhanced Grunt 15544 | -5/Cetus | Scared off Revision 17 15567 | -5/Cetus | Manufactured an Enhanced Grunt 15616 | -5/Cetus | Identified exit to Archives 15624 | -5/Cetus | Entered Archives 15624 | -5/Archives | Accompanied by 6 allies (A7) 15625 | -5/Archives | Loaded intel: 8 machine locations 15629 | -5/Archives | Received a hacking code to weaken MAIN.C 15854 | -5/Archives | Discovered new exit (range 16) 15892 | -5/Archives | Discovered exit to Factory (range 16) 15917 | -5/Archives | Discovered new exit (range 15) 15935 | -5/Archives | Build established: Scavenger-Gladiator 16488 | -5/Archives | Identified exit to Hub_04(d) 16507 | -5/Archives | Entered Hub_04(d) 16507 | -5/Hub_04(d) | Accompanied by 5 allies 16508 | -5/Hub_04(d) | Loaded intel: 97 machine locations 16548 | -5/Hub_04(d) | Zion Explosive Resupply teleported in 16627 | -5/Hub_04(d) | Discovered exit to Factory (range 20) 16656 | -5/Hub_04(d) | Zion Hacking Resupply teleported in 16760 | -5/Hub_04(d) | Network Hub disabled 16789 | -5/Hub_04(d) | Network Hub disabled 16807 | -5/Hub_04(d) | First assault squad dispatched 16827 | -5/Hub_04(d) | Entered Factory 16827 | -4/Factory | Accompanied by 3 allies 16827 | -4/Factory | Evolved 2 slots: Weapon x2 16828 | -4/Factory | Loaded intel: 295 machine locations 16857 | -4/Factory | Lost 3 allies 16953 | -4/Factory | Identified Deep Network Scanner 16954 | -4/Factory | Identified Ghost Barrier 16968 | -4/Factory | Identified Quantum Router 17077 | -4/Factory | First assault squad dispatched 17182 | -4/Factory | Spotted B-86 Titan 17235 | -4/Factory | Discovered new exit (range 15) 17256 | -4/Factory | Identified exit to Armory 17258 | -4/Factory | Entered Armory 17259 | -4/Armory | Loaded intel: 79 machine locations 17395 | -4/Armory | Zion Light squad teleported in 17542 | -4/Armory | Lost 3 allies 17590 | -4/Armory | Fabricated H-66 Slayer? 17594 | -4/Armory | Build established: Hauler-Mutant 17705 | -4/Armory | Lost 5 parts (1p2n1u1w) 17844 | -4/Armory | Spotted B-86 Titan 18120 | -4/Armory | System corruption reached 10% 18209 | -4/Armory | Lost 3 parts (3n) 18258 | -4/Armory | First assault squad dispatched 18335 | -4/Armory | Build established: Hauler-Gladiator 18447 | -4/Armory | Core integrity fell below 50% 18452 | -4/Armory | System corruption reached 30% 18453 | -4/Armory | Self-destructed Last Messages --------------- 18438_ Hvy. Siege Treads destroyed. 18441_ System corrupted: Matter fused (-8). 18441_ P-70 Sage suffers critical hit (Smash). 18441_ Destroyed Unknown Energy Gun. 18441_ P-70 Sage system corrupted by crushing effect. 18441_ P-70 Sage knocked back. 18443_ Slug penetrates Reinforced Shell. 18444_ Y-72 Warden suffers critical hit (Smash). 18444_ Y-72 Warden destroyed. 18445_ Slug penetrates Reinforced Shell. 18445_ Cold Fusion Reactor destroyed. 18448_ Slug penetrates Reinforced Shell. 18451_ Hvy. Siege Treads destroyed. 18451_ Slug penetrates Reinforced Shell. 18451_ Penetrated by Slug. 18451_ Imp. Medium Armor Plating destroyed. 18452_ Penetrated by Slug. 18453_ P-70 Sage resets P-70 Sage, system corruption cleaned. Map ----- +----------------------------------------------------+ | ?????????????????????????????????????????????????? | | ?????????????????????????????????????????????????? | | ?????????????????????????????????????????????????? | | ?????????????????????????????????????????????????? | | ?????????????????????????????????????????????????? | | ?????????????????????????????????????????????????? | | ?????????????????????????????????????????????????? | | ?????????????????????????????????????????????????? | | ?????????????????????????????????????????????????? | | ?????????????????????????????????????????????????? | | ?????????????????????????????????????????????????? | | ???????"""""?????????????????????????????????????? | | ???????"???"?????????????????????????????????????? | | ???????"???"?????????????????????????????????????? | | ???????"""""?????????????????????????????????????? | | ?????????????????????????????????????????????????? | | ?????????????????????????????????????????????????? | | ????????????????????????????########?????????????? | | ?????????H?????????????????? #?????????????? | | ????????????????????????????^ #?????????????? | | ???????????????????????????? ]#?????????????? | | ???????????????????????????? #?????????????? | | ??????????????????????????## #?"""?????????? | | ?????????????############## +?"""?????????? | | ?????????????# !%!p #?"""?????????? | | ?????????????# """ @ #?????????????? | | ?????????????# "[[Y"! p! #?????????????? | | ?????????????# "[[[%h# +?????????????? | | ?????????????# ! """"" #?????????????? | | ?????????????# *%![ %= #?????????????? | | ?????????????######/""##"## #????????????? | | ??T"??????????????#*#? ]% p ?????????? | | ???"??????????????#%## ????????? | | ?????????##########/### ????????? | | ?????????# !! != =# ????????? | | ?????????# !! = [%=!# ?????????? | | ?????????# ! [!%# ^ ?????""""" | | ?????????# !*[/% ??????""""" | | ?????????# !# ####??????""""" | | "???????## ! # #### # #?????????????? | | "???????# """# ######### #?????????????? | | "???????## " ["""# T#%=[ ## #?????????????? | | ?????????#[ [" ""# == ## #????????????? | | ?????????#*=""" F""# [ ## #????????????? | | ""???????#=!] """# * ! !## #????????????? | | """??????#=% [%|[!#!%!# [[[## #???"""??????? | | ?T"??????##########/### ######### #???"""??????# | | """????????????# !!%!*" #????#"## #???"""??????#! | | ""?????????????# """=%*##?????###! ###??????????? | | ????############ %%##?????## ! ###+######## | +----------------------------------------------------+ Best States ------------- Heat Dissipation 43 Energy Generation 23 Energy Capacity 660 Matter Stores 300 Matter Capacity 300 Sight Range 16 Robot Scan Range 20 Terrain Scan Density 10 Jamming Range 12 Armor Coverage 450 Resistance: TH 30 Propulsion Shielding 66 Melee Speed Boost 20 Evasion (%) 70 Targeting Accuracy 8 Melee Accuracy 6 Recoil Reduction 7 Offensive Hacking 22 Authchip Count 1 Item Schematics ----------------- Cargo Storage Unit | -10/Materials | Hacked Gatling Laser | -7/Zion | Archive Enh. Optical Array | -7/Zion | Archive Imp. Cooling System | -7/Zion | Archive Coolant Injector | -7/Zion | Archive Plasma Rifle | -7/Zion | Archive Imp. Weapon Cycler | -7/Zion | Archive KE Penetrator | -7/Zion | Archive Weapon Cycler | -7/Zion | Archive Adv. Signal Interpreter | -7/Zion | Archive IFF Parser | -7/Zion | Archive Hvy. Plasma Cannon | -7/Zion | Archive Power Maul | -7/Zion | Archive Imp. Deuterium Engine | -7/Zion | Archive Combat Drone Bay | -6/Data Miner | Free Lgt. Regenerative Plating | -6/Data Miner | Free Cld. Gravmag System | -6/Data Miner | Free Imp. Energy Well | -6/Data Miner | Free Cld. Plasma Rifle | -6/Data Miner | Free Adv. VSS Leg | -6/Data Miner | Free Lrn. Sensor Array | -6/Data Miner | Free Force Lance | -6/Data Miner | Free Mic. Antimatter Reactor | -6/Data Miner | Free Robot Schematics ------------------ G-73 Enforcer | -7/Zion | Archive A-02 Transporter | -7/Zion | Archive G-47 Trooper | -7/Zion | Archive B-48 Gladiator | -7/Zion | Archive H-66 Slayer | -6/Data Miner | Free L-41 Fighter | -6/Data Miner | Free E-15 Imp | -6/Data Miner | Free W-44 Eye | -6/Data Miner | Free L-61 Swordsman | -6/Data Miner | Free Fabricated ------------ Cargo Storage Unit | x1 | -6/Proximity Caves H-66 Slayer | x2 | -4/Armory Repaired ---------- Exp. Sensor Array | 62% | -8/Materials Studied --------- None Alien Tech Used ----------------- None Achievements -------------- None Challenges ------------ None Game ------ Seed SpacefoldHypercooledHarness Manual? 0 Play Time 02:20:45 Cumulative 501.6 hours Start 2026.07.27 @ 17:49:34 End 2026.07.27 @ 20:28:57 Sessions 1 Manual Loads 0 Difficulty Rogue Special Mode None Game No. 445 Rogue 445 Adventurer 0 Explorer 0 Win Type - Total 13 Types 7/0/3/1/0/0/0/1/0/1 Lore% 63 Gallery% 70 Achievement% 67 Wizard Run 0 Options --------- Layout 1 ASCII 0 Keyboard 0 Movement Mouse Keybinds 0 Fullscreen 2 Font 24/Cog Map View 50x35 Zoom Use 30% Tactical HUD 1 Map Filters NONE Filters NONE Steam 1 RUN: 54546cad-5a16-448d-b1e3-ceae717d305f